[Event "73rd RUS-ch Higher League 2020"]
[Site "Sochi"]
[Date "2020.10.16"]
[Round "8.21"]
[White "Rodchenkov, Vitaly"]
[Black "Obgolts, Erik"]
[Result "1-0"]
[ECO "B10"]
[WhiteElo "2321"]
[BlackElo "2376"]
[Annotator "ChessBase"]
[PlyCount "79"]
[EventDate "2020.10.08"]
[EventType "swiss"]
[EventCountry "RUS"]
[SourceTitle "playchess.com"]
[Source "ChessBase"]
[SourceQuality "1"]
[TimeControl "40/5400+30:1800+30"]

1. e4 {[%emt 0:00:00]} c6 {[%emt 0:00:00]} 2. Nf3 {[%emt 0:00:00]} d5 {[%emt 0:00:00]} 3. d3 {[%emt 0:00:00]} Bg4 {[%emt 0:04:20]} 4. h3 Bxf3 {[%emt 0:01:30]} 5. Qxf3 {[%emt 0:02:25]} e6 6. g3 {[%emt 0:05:34]} Nd7 {[%emt 0:00:42]} 7. Bg2 {[%emt 0:00:12]} Ngf6 {[%emt 0:01:24]} 8. O-O {[%emt 0:00:19]} Bd6 {[%emt 0:03:47]} 9. Qe2 {[%emt 0:00:43]} O-O {[%emt 0:01:21]} 10. Nd2 {[%emt 0:00:13]} Re8 {[%emt 0:07:17]} 11. Nf3 {[%emt 0:01:25]} Qc7 {[%emt 0:02:35]} 12. Bg5 {[%emt 0:00:25]} e5 {[%emt 0:04:15]} 13. Rfe1 {[%emt 0:09:42]} h6 {[%emt 0:01:06]} 14. Bd2 {[%emt 0:00:07]} Bf8 {[%emt 0:06:27]} 15. b4 {[%emt 0:01:52]} c5 {[%emt 0:09:34]} 16. b5 {[%emt 0:04:51]} c4 {[%emt 0:02:34]} 17. exd5 {[%emt 0:02:38]} c3 {[%emt 0:02:52]} 18. Bc1 {[%emt 0:00:37]} Bc5 {[%emt 0:05:22]} 19. Nh4 {[%emt 0:04:30]} e4 {[%emt 0:12:56]} 20. Bf4 Qb6 21. Be3 {[%emt 0:06:26]} Bxe3 {[%emt 0:05:32]} 22. Qxe3 {[%emt 0:01:17]} Qxe3 {[%emt 0:05:17]} 23. Rxe3 {[%emt 0:01:16]} exd3 {[%emt 0:03:02]} 24. Rxd3 {[%emt 0:00:44]} Rac8 {[%emt 0:00:58]} 25. Nf5 {[%emt 0:00:16]} Rc5 {[%emt 0:00:20]} 26. a4 {[%emt 0:02:25]} Re2 {[%emt 0:01:28]} 27. Nd4 {[%emt 0:02:21]} Rd2 {[%emt 0:01:54]} 28. Rxd2 {[%emt 0:01:09]} cxd2 {[%emt 0:00:04]} 29. Rd1 {[%emt 0:00:07]} Ne8 {[%emt 0:02:32]} 30. Rxd2 {[%emt 0:02:49]} Nd6 31. Rd1 Kf8 {[%emt 0:03:55]} 32. Ne6+ {[%emt 0:10:09]} fxe6 {[%emt 0:00:20]} 33. dxe6 {[%emt 0:00:06]} Ke7 {[%emt 0:00:53]} 34. exd7 {[%emt 0:00:06]} Kxd7 {[%emt 0:00:05]} 35. Bxb7 {[%emt 0:00:10]} Rxc2 {[%emt 0:00:49]} 36. Bc6+ {[%emt 0:00:26]} Kc7 {[%emt 0:00:46]} 37. Re1 {[%emt 0:00:44]} Ra2 {[%emt 0:00:07]} 38. Re7+ {[%emt 0:00:29]} Kb6 {[%emt 0:00:15]} 39. Rd7 {[%emt 0:00:34]} Rd2 {[%emt 0:01:14]} 40. a5+ {[%emt 0:00:00]} 1-0

[Event "73rd RUS-ch Higher League 2020"]
[Site "Sochi"]
[Date "2020.10.16"]
[Round "8.22"]
[White "Ibadov, Dashgyn"]
[Black "Shuvalova, Polina"]
[Result "0-1"]
[ECO "B19"]
[WhiteElo "2296"]
[BlackElo "2441"]
[Annotator "ChessBase"]
[PlyCount "88"]
[EventDate "2020.10.08"]
[EventType "swiss"]
[EventCountry "RUS"]
[SourceTitle "playchess.com"]
[Source "ChessBase"]
[SourceQuality "1"]
[TimeControl "40/5400+30:1800+30"]

1. e4 {[%emt 0:00:00]} c6 {[%emt 0:00:00]} 2. d4 {[%emt 0:00:00]} d5 {[%emt 0:00:00]} 3. Nc3 {[%emt 0:00:03]} dxe4 {[%emt 0:00:00]} 4. Nxe4 {[%emt 0:00:07]} Bf5 {[%emt 0:00:00]} 5. Ng3 {[%emt 0:00:18]} Bg6 {[%emt 0:00:00]} 6. h4 {[%emt 0:00:23]} h6 {[%emt 0:00:00]} 7. Nf3 {[%emt 0:00:15]} Nd7 {[%emt 0:00:00]} 8. h5 {[%emt 0:00:21]} Bh7 {[%emt 0:00:02]} 9. Bd3 {[%emt 0:00:10]} Bxd3 {[%emt 0:00:02]} 10. Qxd3 {[%emt 0:00:09]} e6 {[%emt 0:00:03]} 11. Bd2 {[%emt 0:00:24]} Ngf6 {[%emt 0:00:05]} 12. O-O-O {[%emt 0:01:00]} Be7 {[%emt 0:00:04]} 13. Kb1 {[%emt 0:02:07]} Qb6 {[%emt 0:00:08]} 14. Nh4 {[%emt 0:03:55]} Bb4 {[%emt 0:05:36]} 15. c3 {[%emt 0:14:13]} Ba3 {[%emt 0:00:08]} 16. Bc1 {[%emt 0:02:10]} Bd6 {[%emt 0:12:46]} 17. Ngf5 {[%emt 0:03:15]} exf5 {[%emt 0:01:52]} 18. Nxf5 {[%emt 0:01:08]} Qc7 {[%emt 0:00:07]} 19. Nxg7+ {[%emt 0:06:22]} Kf8 {[%emt 0:01:43]} 20. Nf5 {[%emt 0:01:40]} Bf4 {[%emt 0:00:06]} 21. Rhe1 {[%emt 0:10:03]} Re8 {[%emt 0:07:01]} 22. g3 {[%emt 0:11:15]} Rxe1 {[%emt 0:09:14]} 23. Rxe1 {[%emt 0:00:10]} Bxc1 {[%emt 0:00:05]} 24. Kxc1 {[%emt 0:00:36]} Nxh5 {[%emt 0:11:37]} 25. Qe2 {[%emt 0:06:46]} Ndf6 {[%emt 0:02:34]} 26. Qc4 {[%emt 0:02:24]} Qa5 {[%emt 0:10:16]} 27. Re5 {[%emt 0:07:31]} Qb6 {[%emt 0:01:46]} 28. Re7 {[%emt 0:14:19]} Nd5 {[%emt 0:04:52]} 29. Qe2 {[%emt 0:01:33]} Qd8 {[%emt 0:06:37]} 30. Re5 {[%emt 0:07:00]} Ng7 {[%emt 0:00:11]} 31. Nh4 {[%emt 0:02:41]} h5 {[%emt 0:03:22]} 32. c4 {[%emt 0:01:04]} Ne7 {[%emt 0:01:28]} 33. Qe3 {[%emt 0:00:25]} Qd6 {[%emt 0:02:12]} 34. f4 {[%emt 0:00:33]} Rh6 {[%emt 0:01:51]} 35. f5 {[%emt 0:02:15]} Rf6 {[%emt 0:01:28]} 36. c5 {[%emt 0:00:16]} Qd7 {[%emt 0:00:44]} 37. Qg5 {[%emt 0:00:10]} Ng8 {[%emt 0:00:18]} 38. Qf4 {[%emt 0:01:07]} Nh6 {[%emt 0:05:25]} 39. Qg5 {[%emt 0:00:26]} Qd8 {[%emt 0:01:56]} 40. Kc2 {[%emt 0:00:00]} Ng4 {[%emt 0:00:00]} 41. Qf4 {[%emt 0:20:19]} Ne6 {[%emt 0:12:32]} 42. Ng6+ {[%emt 0:03:12]} Kg7 {[%emt 0:00:41]} 43. Rxe6 {[%emt 0:01:45]} fxe6 {[%emt 0:00:06]} 44. Qg5 {[%emt 0:00:07]} Qxd4 {[%emt 0:01:48]} 0-1

[Event "73rd RUS-ch Higher League 2020"]
[Site "Sochi"]
[Date "2020.10.16"]
[Round "8.23"]
[White "Saidov, Bilukhadzh"]
[Black "Nazaretyan, Tigran"]
[Result "0-1"]
[ECO "A46"]
[WhiteElo "2259"]
[BlackElo "2308"]
[Annotator "ChessBase"]
[PlyCount "94"]
[EventDate "2020.10.08"]
[EventType "swiss"]
[EventCountry "RUS"]
[SourceTitle "playchess.com"]
[Source "ChessBase"]
[SourceQuality "1"]
[TimeControl "40/5400+30:1800+30"]

1. d4 {[%emt 0:00:00]} Nf6 {[%emt 0:01:09]} 2. Nf3 {[%emt 0:00:44]} d6 {[%emt 0:01:08]} 3. Nc3 {[%emt 0:02:06]} Bf5 {[%emt 0:01:50]} 4. Nh4 {[%emt 0:03:13]} Bd7 {[%emt 0:01:11]} 5. g3 {[%emt 0:00:26]} e5 {[%emt 0:02:04]} 6. Bg2 {[%emt 0:00:23]} exd4 {[%emt 0:04:01]} 7. Qxd4 {[%emt 0:01:37]} Nc6 {[%emt 0:03:11]} 8. Qd1 {[%emt 0:00:14]} g6 {[%emt 0:01:37]} 9. O-O {[%emt 0:01:54]} Bg7 {[%emt 0:01:05]} 10. e4 {[%emt 0:03:47]} Qc8 {[%emt 0:06:08]} 11. Re1 {[%emt 0:06:05]} O-O {[%emt 0:03:41]} 12. Bg5 {[%emt 0:06:13]} Bh3 {[%emt 0:03:18]} 13. Qd2 {[%emt 0:03:52]} Re8 {[%emt 0:04:47]} 14. Bh1 {[%emt 0:12:14]} Ng4 {[%emt 0:06:38]} 15. Nf3 {[%emt 0:04:24]} h6 {[%emt 0:03:11]} 16. Bf4 {[%emt 0:00:10]} g5 {[%emt 0:09:51]} 17. Be3 {[%emt 0:00:19]} Nxe3 {[%emt 0:03:06]} 18. Rxe3 {[%emt 0:01:23]} f5 {[%emt 0:03:06]} 19. Bg2 {[%emt 0:22:36]} Bxg2 {[%emt 0:15:10]} 20. Kxg2 {[%emt 0:00:16]} f4 {[%emt 0:06:48]} 21. Ree1 {[%emt 0:00:21]} Ne5 {[%emt 0:01:46]} 22. Nxe5 {[%emt 0:02:30]} Bxe5 {[%emt 0:00:26]} 23. f3 {[%emt 0:01:40]} Qe6 {[%emt 0:05:10]} 24. Nd5 {[%emt 0:01:33]} Qf7 {[%emt 0:00:44]} 25. c3 {[%emt 0:02:39]} a5 {[%emt 0:00:55]} 26. Qd3 {[%emt 0:00:40]} b5 {[%emt 0:02:15]} 27. c4 {[%emt 0:05:53]} c6 {[%emt 0:00:51]} 28. Nc3 {[%emt 0:00:56]} Qxc4 {[%emt 0:00:57]} 29. Qd2 {[%emt 0:00:06]} a4 {[%emt 0:01:10]} 30. Rac1 {[%emt 0:00:30]} Qf7 {[%emt 0:00:58]} 31. Rc2 {[%emt 0:00:55]} Rf8 {[%emt 0:00:44]} 32. g4 {[%emt 0:00:58]} b4 {[%emt 0:00:57]} 33. Ne2 {[%emt 0:00:09]} c5 {[%emt 0:01:27]} 34. Nc1 {[%emt 0:01:03]} b3 {[%emt 0:01:42]} 35. axb3 {[%emt 0:00:09]} axb3 {[%emt 0:00:05]} 36. Rc3 {[%emt 0:00:04]} Bxc3 {[%emt 0:00:17]} 37. Qxc3 {[%emt 0:00:01]} Ra1 {[%emt 0:01:41]} 38. Rd1 {[%emt 0:00:17]} Qe6 {[%emt 0:01:12]} 39. Rd5 {[%emt 0:00:27]} c4 {[%emt 0:01:40]} 40. Ne2 {[%emt 0:00:00]} Rc8 {[%emt 0:00:00]} 41. Nd4 {[%emt 0:01:02]} Qf6 {[%emt 0:01:28]} 42. e5 {[%emt 0:00:41]} dxe5 {[%emt 0:00:48]} 43. Nf5 {[%emt 0:00:14]} Qb6 {[%emt 0:01:54]} 44. Rd2 {[%emt 0:03:32]} Qg1+ {[%emt 0:02:08]} 45. Kh3 {[%emt 0:00:02]} Qf1+ {[%emt 0:01:14]} 46. Rg2 {[%emt 0:00:03]} Re8 {[%emt 0:03:41]} 47. Nd6 {[%emt 0:01:42]} Rc1 {[%emt 0:01:11]} 0-1

[Event "73rd RUS-ch Higher League 2020"]
[Site "Sochi"]
[Date "2020.10.16"]
[Round "8.24"]
[White "Tugarin, Anton"]
[Black "Lugovskoy, Maxim"]
[Result "1-0"]
[ECO "C04"]
[WhiteElo "2224"]
[BlackElo "2420"]
[Annotator "ChessBase"]
[PlyCount "49"]
[EventDate "2020.10.08"]
[EventType "swiss"]
[EventCountry "RUS"]
[SourceTitle "playchess.com"]
[Source "ChessBase"]
[SourceQuality "1"]
[TimeControl "40/5400+30:1800+30"]

1. e4 {[%emt 0:01:49]} e6 {[%emt 0:03:18]} 2. d4 {[%emt 0:00:15]} d5 {[%emt 0:00:04]} 3. Nd2 {[%emt 0:00:38]} Nc6 {[%emt 0:00:06]} 4. Ngf3 {[%emt 0:00:13]} Nf6 {[%emt 0:00:04]} 5. e5 {[%emt 0:00:13]} Nd7 {[%emt 0:00:08]} 6. Bd3 {[%emt 0:00:46]} f6 {[%emt 0:00:04]} 7. Ng5 {[%emt 0:00:14]} Ndxe5 {[%emt 0:00:06]} 8. dxe5 {[%emt 0:00:08]} fxg5 {[%emt 0:00:04]} 9. Qh5+ {[%emt 0:00:12]} g6 {[%emt 0:00:03]} 10. Bxg6+ {[%emt 0:00:16]} Kd7 {[%emt 0:00:03]} 11. c4 {[%emt 0:00:48]} Nxe5 {[%emt 0:02:03]} 12. Bc2 {[%emt 0:00:16]} Qf6 {[%emt 0:04:20]} 13. O-O {[%emt 0:04:55]} c6 {[%emt 0:01:17]} 14. cxd5 {[%emt 0:24:55]} exd5 {[%emt 0:00:11]} 15. f4 {[%emt 0:00:45]} gxf4 {[%emt 0:00:59]} 16. Ne4 {[%emt 0:00:35]} dxe4 {[%emt 0:02:00]} 17. Bxf4 {[%emt 0:00:58]} Bg7 {[%emt 0:27:31]} 18. Rad1+ {[%emt 0:05:32]} Kc7 {[%emt 0:00:45]} 19. Bg3 {[%emt 0:00:14]} Qe6 {[%emt 0:01:12]} 20. Rf7+ {[%emt 0:00:31]} Kb6 {[%emt 0:00:32]} 21. Rxg7 {[%emt 0:00:37]} Nc4 {[%emt 0:05:25]} 22. b3 {[%emt 0:02:11]} Ka6 {[%emt 0:00:54]} 23. bxc4 {[%emt 0:01:31]} Qxc4 {[%emt 0:00:04]} 24. Bb3 {[%emt 0:00:39]} Qc3 {[%emt 0:00:07]} 25. Be1 {[%emt 0:04:15]} 1-0

[Event "73rd RUS-ch Higher League 2020"]
[Site "Sochi"]
[Date "2020.10.16"]
[Round "8.25"]
[White "Sergeyev, Alexander"]
[Black "Bimiev, Ahmad"]
[Result "1-0"]
[ECO "D02"]
[WhiteElo "2374"]
[BlackElo "2252"]
[Annotator "ChessBase"]
[PlyCount "139"]
[EventDate "2020.10.08"]
[EventType "swiss"]
[EventCountry "RUS"]
[SourceTitle "playchess.com"]
[Source "ChessBase"]
[SourceQuality "1"]
[TimeControl "40/5400+30:1800+30"]

1. d4 {[%emt 0:00:00]} Nf6 {[%emt 0:00:13]} 2. Nf3 {[%emt 0:00:00]} d5 {[%emt 0:02:16]} 3. Bf4 {[%emt 0:01:25]} c5 {[%emt 0:02:37]} 4. e3 {[%emt 0:00:15]} Nc6 {[%emt 0:00:08]} 5. c3 {[%emt 0:00:29]} Bg4 {[%emt 0:01:37]} 6. Qb3 {[%emt 0:03:10]} Qc8 {[%emt 0:07:42]} 7. Ne5 {[%emt 0:01:27]} c4 {[%emt 0:00:56]} 8. Qa4 {[%emt 0:00:56]} a6 {[%emt 0:28:40]} 9. Nxc6 {[%emt 0:05:01]} b5 {[%emt 0:07:47]} 10. Nxe7 {[%emt 0:01:01]} Bxe7 {[%emt 0:00:08]} 11. Qc2 {[%emt 0:01:07]} Nh5 {[%emt 0:04:55]} 12. Be5 {[%emt 0:03:00]} f6 {[%emt 0:00:29]} 13. Bg3 {[%emt 0:04:32]} Bf5 {[%emt 0:01:45]} 14. Qd1 {[%emt 0:01:52]} Nxg3 {[%emt 0:00:12]} 15. hxg3 {[%emt 0:00:03]} O-O {[%emt 0:01:02]} 16. Be2 {[%emt 0:01:48]} a5 {[%emt 0:01:42]} 17. Bf3 {[%emt 0:02:59]} Qc6 {[%emt 0:00:22]} 18. O-O {[%emt 0:00:35]} Bd6 {[%emt 0:02:36]} 19. Re1 {[%emt 0:04:00]} Rfe8 {[%emt 0:00:20]} 20. b3 {[%emt 0:09:27]} a4 {[%emt 0:09:08]} 21. b4 {[%emt 0:01:24]} Ra7 {[%emt 0:00:32]} 22. g4 {[%emt 0:03:07]} Bg6 {[%emt 0:03:19]} 23. a3 {[%emt 0:00:42]} Rae7 {[%emt 0:00:08]} 24. Nd2 {[%emt 0:00:52]} Bc7 {[%emt 0:02:10]} 25. Nf1 {[%emt 0:06:14]} Qd6 {[%emt 0:02:04]} 26. g3 {[%emt 0:02:59]} Bd3 {[%emt 0:00:16]} 27. Bg2 {[%emt 0:00:26]} g5 {[%emt 0:04:07]} 28. Nd2 {[%emt 0:04:57]} Be4 {[%emt 0:06:21]} 29. Bxe4 dxe4 {[%emt 0:00:07]} 30. Kg2 {[%emt 0:15:45]} Kg7 {[%emt 0:01:12]} 31. Rh1 {[%emt 0:00:12]} h6 {[%emt 0:00:27]} 32. Rh5 {[%emt 0:01:00]} Rh8 {[%emt 0:00:37]} 33. Qh1 {[%emt 0:00:23]} Qe6 {[%emt 0:01:46]} 34. Qh3 {[%emt 0:00:15]} Kg6 {[%emt 0:00:11]} 35. Rh1 {[%emt 0:00:27]} Reh7 {[%emt 0:00:05]} 36. Kf1 {[%emt 0:00:37]} Bd6 {[%emt 0:00:09]} 37. Ke2 {[%emt 0:02:00]} Qd5 {[%emt 0:06:16]} 38. Qg2 {[%emt 0:01:02]} Re8 {[%emt 0:00:04]} 39. f3 {[%emt 0:00:54]} exf3+ {[%emt 0:00:03]} 40. Qxf3 {[%emt 0:00:00]} Qxf3+ {[%emt 0:00:00]} 41. Kxf3 {[%emt 0:00:12]} Bxg3 {[%emt 0:00:26]} 42. Kxg3 {[%emt 0:02:02]} Rxe3+ {[%emt 0:00:05]} 43. Kf2 {[%emt 0:02:56]} Rxc3 {[%emt 0:00:04]} 44. Ne4 {[%emt 0:10:41]} Rxa3 {[%emt 0:04:24]} 45. Nd6 {[%emt 0:01:16]} Rb3 {[%emt 0:05:30]} 46. Nxb5 {[%emt 0:10:58]} a3 {[%emt 0:04:53]} 47. R5h3 {[%emt 0:03:52]} a2 {[%emt 0:01:16]} 48. Nc3 {[%emt 0:00:28]} Rxb4 {[%emt 0:02:51]} 49. d5 {[%emt 0:05:03]} f5 {[%emt 0:01:59]} 50. gxf5+ {[%emt 0:00:51]} Kxf5 {[%emt 0:00:04]} 51. Rf3+ {[%emt 0:01:37]} Kg6 {[%emt 0:00:11]} 52. Ke3 {[%emt 0:02:05]} Ra7 {[%emt 0:01:07]} 53. Ra1 {[%emt 0:00:24]} g4 {[%emt 0:01:11]} 54. Rf2 {[%emt 0:00:36]} Ra3 {[%emt 0:06:25]} 55. Kd4 {[%emt 0:00:36]} Rbb3 {[%emt 0:00:10]} 56. Rfxa2 {[%emt 0:01:04]} Rxa2 {[%emt 0:00:20]} 57. Rxa2 {[%emt 0:00:01]} h5 {[%emt 0:00:08]} 58. d6 {[%emt 0:00:27]} g3 {[%emt 0:01:13]} 59. Ra8 {[%emt 0:05:40]} Rb2 {[%emt 0:03:53]} 60. Rg8+ {[%emt 0:04:45]} Kf7 {[%emt 0:00:22]} 61. Rxg3 {[%emt 0:00:15]} Rd2+ {[%emt 0:00:02]} 62. Kc5 {[%emt 0:00:16]} h4 {[%emt 0:00:58]} 63. Rg4 {[%emt 0:02:03]} h3 {[%emt 0:00:07]} 64. Rxc4 {[%emt 0:00:48]} h2 {[%emt 0:01:07]} 65. Rh4 {[%emt 0:00:11]} Rc2 {[%emt 0:00:21]} 66. Kd4 {[%emt 0:00:20]} Ke6 {[%emt 0:01:54]} 67. Rh6+ {[%emt 0:00:43]} Kf5 {[%emt 0:02:40]} 68. Ne4 {[%emt 0:01:17]} Ra2 {[%emt 0:01:59]} 69. d7 {[%emt 0:00:54]} Ra8 {[%emt 0:01:58]} 70. Rxh2 {[%emt 0:00:15]} 1-0

[Event "73rd RUS-ch Higher League 2020"]
[Site "Sochi"]
[Date "2020.10.17"]
[Round "9.1"]
[White "Sakaev, Konstantin"]
[Black "Chigaev, Maksim"]
[Result "1/2-1/2"]
[ECO "D97"]
[WhiteElo "2596"]
[BlackElo "2598"]
[Annotator "RC"]
[PlyCount "83"]
[EventDate "2020.10.08"]
[EventType "swiss"]
[EventCountry "RUS"]
[SourceTitle "playchess.com"]
[Source "ChessBase"]
[SourceQuality "1"]
[TimeControl "40/5400+30:1800+30"]

1. d4 {[%emt 0:00:00]} Nf6 {[%emt 0:00:00]} 2. c4 {[%emt 0:00:00]} g6 {[%emt 0:00:00]} 3. Nc3 {[%emt 0:00:00]} d5 {[%emt 0:00:00]} 4. Nf3 {[%emt 0:00:14]} Bg7 {[%emt 0:00:00]} 5. Qb3 {[%emt 0:00:07]} dxc4 {[%emt 0:00:39]} 6. Qxc4 {[%emt 0:00:09]} O-O {[%emt 0:10:44]} 7. e4 {[%emt 0:00:25]} Nc6 {[%emt 0:04:26]} 8. h3 {[%emt 0:00:47]} Nd7 {[%emt 0:03:13]} 9. Be3 {[%emt 0:03:24]} Nb6 {[%emt 0:00:14]} 10. Qc5 {[%emt 0:02:57]} Nd7 {[%emt 0:05:47]} 11. Qc4 {[%emt 0:01:57]} Nb6 {[%emt 0:00:31]} 12. Qc5 {[%emt 0:00:07]} Nd7 {[%emt 0:00:05]} 13. Qg5 {[%emt 0:09:05]} Bf6 {[%emt 0:07:44]} 14. Qg3 {[%emt 0:07:56]} e5 {[%emt 0:02:03]} 15. d5 {[%emt 0:03:23]} Nd4 {[%emt 0:09:13]} 16. O-O-O Nxf3 17. gxf3 {[%emt 0:13:32]} Bh4 {[%emt 0:02:46]} 18. Qh2 {[%emt 0:01:36]} c6 {[%emt 0:04:35]} 19. f4 {[%emt 0:05:15]} exf4 {[%emt 0:01:04]} 20. Bxf4 {[%emt 0:06:50]} Qa5 {[%emt 0:02:37]} 21. Bc7 {[%emt 0:07:23]} Nb6 {[%emt 0:03:52]} 22. Kb1 {[%emt 0:09:25]} Re8 {[%emt 0:10:19]} 23. Qf4 {[%emt 0:04:13]} Bd8 {[%emt 0:00:28]} 24. Bxd8 {[%emt 0:02:47]} Rxd8 {[%emt 0:00:07]} 25. Qf6 {[%emt 0:03:40]} Re8 {[%emt 0:01:26]} 26. d6 {[%emt 0:03:05]} Be6 {[%emt 0:02:24]} 27. Qd4 {[%emt 0:01:06]} Qg5 {[%emt 0:18:37]} 28. h4 {[%emt 0:03:19]} Qf4 {[%emt 0:00:02]} 29. Qd2 {[%emt 0:01:51]} Qxd2 {[%emt 0:03:26]} 30. Rxd2 {[%emt 0:00:03]} f5 {[%emt 0:00:04]} 31. e5 {[%emt 0:02:45]} f4 {[%emt 0:01:04]} 32. Bd3 {[%emt 0:00:27]} Nd7 {[%emt 0:04:04]} 33. Re1 {[%emt 0:03:19]} f3 {[%emt 0:00:09]} 34. Re3 {[%emt 0:03:18]} Bf7 {[%emt 0:00:40]} 35. Ne4 {[%emt 0:00:30]} Kg7 {[%emt 0:00:25]} 36. Nf6 {[%emt 0:00:19]} Nxf6 {[%emt 0:00:10]} 37. exf6+ {[%emt 0:00:04]} Kxf6 {[%emt 0:00:03]} 38. Rxf3+ {[%emt 0:00:12]} Kg7 {[%emt 0:00:04]} 39. Rf4 {[%emt 0:01:00]} Rad8 {[%emt 0:00:19]} 40. Bc4 {[%emt 0:00:00]} Bxc4 {[%emt 0:00:00]} 41. Rxc4 {[%emt 0:00:16]} Rd7 {[%emt 0:01:56]} 42. Kc2 {[%emt 0:00:59]} 1/2-1/2

[Event "73rd RUS-ch Higher League 2020"]
[Site "Sochi"]
[Date "2020.10.17"]
[Round "9.11"]
[White "Gaifullin, Artur"]
[Black "Sviridov, Valery"]
[Result "1/2-1/2"]
[ECO "B06"]
[WhiteElo "2440"]
[BlackElo "2558"]
[Annotator "RC"]
[PlyCount "90"]
[EventDate "2020.10.08"]
[EventType "swiss"]
[EventCountry "RUS"]
[SourceTitle "playchess.com"]
[Source "ChessBase"]
[SourceQuality "1"]
[TimeControl "40/5400+30:1800+30"]

1. d4 {[%emt 0:00:00]} g6 {[%emt 0:00:07]} 2. e4 {[%emt 0:00:00]} Bg7 {[%emt 0:00:17]} 3. Nc3 {[%emt 0:00:00]} a6 {[%emt 0:00:42]} 4. f4 {[%emt 0:00:00]} d6 {[%emt 0:00:20]} 5. Nf3 {[%emt 0:00:04]} b5 {[%emt 0:00:15]} 6. Bd3 {[%emt 0:00:12]} Bb7 {[%emt 0:00:12]} 7. O-O {[%emt 0:00:58]} Nd7 {[%emt 0:00:16]} 8. a4 {[%emt 0:00:13]} b4 {[%emt 0:04:37]} 9. Ne2 {[%emt 0:00:05]} c5 {[%emt 0:01:26]} 10. c3 {[%emt 0:00:05]} bxc3 {[%emt 0:03:34]} 11. bxc3 {[%emt 0:00:07]} Ngf6 {[%emt 0:00:08]} 12. e5 {[%emt 0:00:23]} Nd5 {[%emt 0:00:21]} 13. Rb1 {[%emt 0:00:31]} Qc8 {[%emt 0:07:12]} 14. Ng5 {[%emt 0:04:14]} O-O {[%emt 0:09:24]} 15. e6 {[%emt 0:01:27]} fxe6 {[%emt 0:00:37]} 16. Nxe6 {[%emt 0:00:07]} c4 {[%emt 0:00:29]} 17. Bc2 {[%emt 0:04:13]} Qc6 {[%emt 0:01:30]} 18. Rxb7 {[%emt 0:10:20]} Qxb7 {[%emt 0:00:12]} 19. Nxf8 {[%emt 0:00:03]} Rxf8 {[%emt 0:01:30]} 20. f5 {[%emt 0:01:31]} gxf5 {[%emt 0:04:11]} 21. Bxf5 {[%emt 0:01:23]} Kh8 {[%emt 0:03:42]} 22. Qe1 {[%emt 0:05:28]} Rf7 {[%emt 0:06:24]} 23. Qh4 {[%emt 0:04:54]} Nf8 {[%emt 0:01:01]} 24. Be4 {[%emt 0:24:49]} Rxf1+ {[%emt 0:00:17]} 25. Kxf1 {[%emt 0:00:01]} e6 {[%emt 0:01:01]} 26. Qh5 {[%emt 0:05:35]} Ne3+ {[%emt 0:00:52]} 27. Bxe3 {[%emt 0:00:13]} Qxe4 {[%emt 0:00:05]} 28. Kf2 {[%emt 0:01:50]} d5 {[%emt 0:08:57]} 29. Qf7 {[%emt 0:06:48]} Qh4+ {[%emt 0:03:30]} 30. Ng3 {[%emt 0:00:06]} Qf6+ {[%emt 0:02:32]} 31. Qxf6 {[%emt 0:00:19]} Bxf6 {[%emt 0:00:04]} 32. Nh5 {[%emt 0:01:26]} Bd8 {[%emt 0:01:29]} 33. Bh6 {[%emt 0:10:51]} Ng6 {[%emt 0:01:14]} 34. Ng7 {[%emt 0:06:05]} Bg5 {[%emt 0:08:52]} 35. Bxg5 {[%emt 0:00:02]} Kxg7 {[%emt 0:00:08]} 36. g4 {[%emt 0:02:09]} e5 {[%emt 0:03:13]} 37. dxe5 {[%emt 0:06:56]} Nxe5 {[%emt 0:00:06]} 38. h3 {[%emt 0:00:05]} Kf7 {[%emt 0:03:24]} 39. Ke3 {[%emt 0:00:22]} Ke6 {[%emt 0:00:18]} 40. Bf4 {[%emt 0:00:00]} Nd3 {[%emt 0:00:00]} 41. a5 {[%emt 0:06:43]} Nc5 {[%emt 0:05:52]} 42. h4 {[%emt 0:00:22]} Kf6 {[%emt 0:00:53]} 43. Bg5+ {[%emt 0:11:57]} Ke6 {[%emt 0:01:07]} 44. Bf4 {[%emt 0:03:32]} Kf6 {[%emt 0:00:20]} 45. Bg5+ {[%emt 0:00:15]} Ke5 1/2-1/2

[Event "73rd RUS-ch Higher League 2020"]
[Site "Sochi"]
[Date "2020.10.17"]
[Round "9.19"]
[White "Murzin, Volodar"]
[Black "Ovchinnikov, Vsevolod"]
[Result "1/2-1/2"]
[ECO "B06"]
[WhiteElo "2465"]
[BlackElo "2349"]
[Annotator "RC"]
[PlyCount "93"]
[EventDate "2020.10.08"]
[EventType "swiss"]
[EventCountry "RUS"]
[SourceTitle "playchess.com"]
[Source "ChessBase"]
[SourceQuality "1"]
[TimeControl "40/5400+30:1800+30"]

1. e4 {[%emt 0:00:00]} g6 {[%emt 0:00:00]} 2. d4 {[%emt 0:00:00]} Bg7 {[%emt 0:00:00]} 3. Nf3 {[%emt 0:00:00]} d6 {[%emt 0:00:00]} 4. Bc4 {[%emt 0:00:00]} Nf6 {[%emt 0:00:00]} 5. Qe2 {[%emt 0:00:00]} O-O {[%emt 0:00:01]} 6. c3 {[%emt 0:03:32]} Bg4 {[%emt 0:09:43]} 7. Nbd2 {[%emt 0:03:00]} e5 {[%emt 0:02:18]} 8. dxe5 {[%emt 0:00:05]} dxe5 {[%emt 0:00:06]} 9. h3 {[%emt 0:00:03]} Bxf3 {[%emt 0:00:06]} 10. Nxf3 {[%emt 0:00:03]} Nbd7 {[%emt 0:00:25]} 11. O-O {[%emt 0:00:23]} Qe7 {[%emt 0:05:42]} 12. Re1 {[%emt 0:00:50]} Ne8 {[%emt 0:11:36]} 13. Bg5 {[%emt 0:09:15]} Bf6 {[%emt 0:00:06]} 14. Be3 {[%emt 0:02:03]} Nd6 {[%emt 0:01:34]} 15. Bd3 {[%emt 0:03:41]} Bg7 {[%emt 0:03:54]} 16. Nd2 {[%emt 0:01:56]} Bf6 {[%emt 0:02:51]} 17. Nc4 {[%emt 0:02:56]} Nxc4 {[%emt 0:02:14]} 18. Bxc4 {[%emt 0:00:02]} Bg5 {[%emt 0:00:02]} 19. Rad1 {[%emt 0:00:16]} Bxe3 {[%emt 0:03:39]} 20. Qxe3 {[%emt 0:00:16]} Nb6 {[%emt 0:00:27]} 21. Bb3 {[%emt 0:00:33]} Rad8 {[%emt 0:00:46]} 22. g3 {[%emt 0:05:24]} Rxd1 {[%emt 0:06:07]} 23. Rxd1 {[%emt 0:00:02]} Rd8 {[%emt 0:00:18]} 24. Rxd8+ {[%emt 0:00:14]} Qxd8 25. Qc5 {[%emt 0:00:12]} Qd6 {[%emt 0:00:37]} 26. Qb5 {[%emt 0:01:04]} c6 {[%emt 0:06:33]} 27. Qe2 {[%emt 0:00:24]} Nd7 {[%emt 0:02:51]} 28. Qf3 {[%emt 0:03:49]} Qe7 {[%emt 0:02:16]} 29. Kg2 {[%emt 0:00:34]} Kg7 {[%emt 0:04:30]} 30. h4 {[%emt 0:01:25]} Nc5 {[%emt 0:00:46]} 31. Bc2 {[%emt 0:00:07]} Ne6 {[%emt 0:09:08]} 32. Qe3 {[%emt 0:03:59]} Qc5 {[%emt 0:01:40]} 33. Qd3 {[%emt 0:00:28]} Qe7 {[%emt 0:01:42]} 34. b4 {[%emt 0:04:08]} Qd8 {[%emt 0:03:48]} 35. Qe3 {[%emt 0:03:38]} Qb6 {[%emt 0:00:50]} 36. Qxb6 {[%emt 0:00:37]} axb6 {[%emt 0:00:01]} 37. a4 {[%emt 0:00:18]} Nc7 {[%emt 0:08:48]} 38. f4 {[%emt 0:03:35]} f6 {[%emt 0:05:07]} 39. Bb3 {[%emt 0:02:02]} Kf8 {[%emt 0:04:17]} 40. Kf3 {[%emt 0:00:00]} Ne8 {[%emt 0:00:00]} 41. Ke3 {[%emt 0:03:27]} Ke7 {[%emt 0:08:44]} 42. Bg8 {[%emt 0:00:30]} Kf8 {[%emt 0:00:27]} 43. Bb3 {[%emt 0:01:05]} Ke7 {[%emt 0:00:13]} 44. g4 {[%emt 0:02:44]} h6 {[%emt 0:01:20]} 45. f5 {[%emt 0:05:42]} g5 {[%emt 0:01:36]} 46. h5 {[%emt 0:00:06]} Kd8 {[%emt 0:01:03]} 47. Kd3 {[%emt 0:00:16]} 1/2-1/2